bitfinex/quotes_SOLUSD_20250514
["timestamp","ask_amount","ask_price","bid_price","bid_amount"]
[1747255073255,17.05105296,176.84,176.79,17.05105296]
[1747255073956,19.79078314,176.85,176.76,82.9]
[1747255073957,17.05105296,176.8,176.76,82.9]
[1747255074137,17.05105296,176.79,176.74,35.67105296]
[1747255074322,17.05105296,176.79,176.75,17.05105296]
[1747255074740,5.6567485,176.78,176.75,17.05105296]
[1747255076831,14.14136405,176.79,176.75,17.05105296]
[1747255077035,5.65578869,176.81,176.77,17.05105296]
[1747255077361,19.79526043,176.81,176.77,17.05105296]
[1747255077652,36.84631339,176.81,176.77,17.05105296]
[1747255078352,36.84631339,176.81,176.76,17.05105296]
[1747255080458,5.65642853,176.79,176.76,17.05105296]
[1747255081977,5.65642853,176.79,176.74,101.52]
[1747255082133,5.65642853,176.79,176.76,17.05105296]
[1747255083369,19.79749985,176.79,176.76,17.05105296]
[1747255085232,5.65642853,176.79,176.76,17.05105296]
[1747255085436,5.65578869,176.81,176.78,17.05105296]
[1747255085649,5.65578869,176.81,176.8,17.05105296]
[1747255085975,5.65578869,176.81,176.8,99.95105296]
[1747255086184,5.65482922,176.84,176.8,17.05105296]
[1747255086349,5.65482922,176.84,176.83,17.05105296]
[1747255087285,14.13686004,176.85,176.83,17.05105296]
[1747255087770,5.65418975,176.86,176.84,17.05105296]
[1747255088778,5.65387007,176.87,176.84,17.05105296]
[1747255089182,19.78854525,176.87,176.81,101.42]
[1747255089367,19.78854525,176.87,176.83,17.05105296]
[1747255090267,19.78854525,176.87,176.84,17.05105296]
[1747255092379,26.0,176.86,176.84,17.05105296]
[1747255093782,5.65450947,176.85,176.84,17.05105296]
[1747255094469,6.5216,176.91,176.84,99.95105296]
[1747255094470,5.65355042,176.88,176.84,99.95105296]
[1747255094774,5.65355042,176.88,176.87,17.05105296]
[1747255095178,5.65355042,176.88,176.87,35.51105296]
[1747255095584,5.65355042,176.88,176.87,18.46]
[1747255097859,17.05105296,176.88,176.87,18.46]
[1747255098282,17.05105296,176.88,176.84,82.9]
[1747255098483,17.05105296,176.87,176.83,17.05105296]
[1747255098779,17.05105296,176.88,176.83,17.05105296]
[1747255099102,19.78630787,176.89,176.85,17.05105296]
[1747255099398,19.78630787,176.89,176.86,17.05105296]
[1747255105280,5.65323082,176.89,176.87,17.05105296]
[1747255107868,5.65323082,176.89,176.82,238.34]
[1747255108186,5.65323082,176.89,176.87,17.05105296]
[1747255109266,5.65323082,176.89,176.82,238.34]
[1747255109465,19.78630787,176.89,176.85,17.05105296]
[1747255110969,19.78630787,176.89,176.86,17.05105296]
[1747255115596,5.65323082,176.89,176.86,17.05105296]
[1747255115797,5.65323082,176.89,176.87,17.05105296]
[1747255117199,19.78407099,176.91,176.87,17.05105296]
[1747255117603,36.83512395,176.91,176.86,17.05105296]
[1747255117976,17.05105296,176.9,176.85,17.05105296]
[1747255118184,17.05105296,176.9,176.85,35.33105296]
[1747255119108,17.05105296,176.9,176.86,17.05105296]
[1747255120793,19.78630787,176.89,176.85,35.33105296]
[1747255120986,36.83736083,176.89,176.84,17.05105296]
[1747255121197,17.05105296,176.87,176.83,82.9]
[1747255121400,17.05105296,176.87,176.82,118.21105296]
[1747255123011,19.78966413,176.86,176.83,17.05105296]
[1747255123315,5.65418975,176.86,176.84,17.05105296]
[1747255125414,19.78854525,176.87,176.84,17.05105296]
[1747255126422,14.13467518,176.87,176.84,17.05105296]
[1747255127810,31.18572814,176.87,176.82,35.31105296]
[1747255128020,17.05105296,176.84,176.81,18.42]
[1747255128310,17.05105296,176.83,176.78,18.2]
[1747255128624,5.65578869,176.81,176.78,35.25105296]
[1747255130589,19.79493373,176.82,176.78,35.25105296]
[1747255131819,36.84598669,176.82,176.78,35.25105296]
[1747255133915,19.79493373,176.82,176.78,35.25105296]
[1747255138408,19.79493373,176.82,176.79,17.05105296]
[1747255140031,19.79493373,176.82,176.78,35.21105296]
[1747255142231,36.84598669,176.82,176.78,17.05105296]
[1747255142531,36.84598669,176.82,176.77,35.21105296]
[1747255143314,17.05105296,176.81,176.77,17.05105296]
[1747255144132,36.84598669,176.82,176.77,17.05105296]
[1747255144531,19.79493373,176.82,176.77,17.05105296]
[1747255144836,36.84598669,176.82,176.78,17.05105296]
[1747255146836,36.84598669,176.82,176.77,17.05105296]
[1747255147001,36.84598669,176.82,176.76,18.16]
[1747255147002,26.0,176.79,176.76,18.16]
[1747255147202,43.05105296,176.79,176.74,17.05105296]
[1747255147425,26.0,176.76,176.74,35.21105296]
[1747255147808,26.0,176.76,176.74,17.05105296]
[1747255148427,26.0,176.76,176.71,82.9]
[1747255148428,5.65770862,176.75,176.71,82.9]
[1747255148611,5.65770862,176.75,176.72,18.18]
[1747255148814,5.65770862,176.75,176.72,35.23105296]
[1747255149213,5.65770862,176.75,176.72,17.05105296]
[1747255149509,48.70847207,176.76,176.72,17.05105296]
[1747255150299,48.70847207,176.76,176.71,101.1]
[1747255150519,31.65741911,176.76,176.72,17.05105296]
[1747255151002,5.65741911,176.76,176.72,17.05105296]
[1747255151198,31.65716585,176.77,176.73,17.05105296]
[1747255151408,48.70821881,176.77,176.73,17.05105296]
[1747255152145,22.70821881,176.77,176.73,17.05105296]
[1747255154124,22.70821881,176.77,176.71,101.1]
[1747255154347,17.05105296,176.75,176.71,99.95105296]
[1747255154541,17.05105296,176.75,176.71,118.19105296]
[1747255154851,17.05105296,176.76,176.71,118.19105296]
[1747255155139,17.05105296,176.76,176.72,17.05105296]
[1747255155743,26.0,176.77,176.72,17.05105296]
[1747255155927,17.05105296,176.76,176.72,17.05105296]
[1747255156245,5.65770862,176.75,176.72,17.05105296]
[1747255156557,17.05105296,176.79,176.74,17.05105296]
[1747255156727,5.65642853,176.79,176.78,17.05105296]
[1747255157453,18.65225296,176.86,176.78,17.05105296]
[1747255157628,18.65225296,176.86,176.82,17.05105296]
[1747255157815,44.65225296,176.86,176.82,17.05105296]
[1747255158216,18.64964886,176.88,176.85,17.05105296]
[1747255158217,5.65355042,176.88,176.85,17.05105296]
[1747255158556,31.65355042,176.88,176.85,17.05105296]
[1747255158847,62.83847945,176.88,176.84,17.05105296]
[1747255159746,17.05105296,176.87,176.83,18.28]
[1747255161017,5.65418975,176.86,176.83,18.28]
[1747255161544,22.70524271,176.86,176.83,18.28]
[1747255162325,17.05105296,176.85,176.83,18.28]
[1747255162529,5.65418975,176.86,176.83,18.28]
[1747255162530,17.05105296,176.84,176.83,18.28]
[1747255162738,43.05105296,176.84,176.78,82.9]
[1747255163043,5.65578869,176.81,176.78,17.05105296]
[1747255163941,5.65578869,176.81,176.77,101.14]
[1747255163942,19.79526043,176.81,176.77,118.19105296]
[1747255165660,14.13947174,176.81,176.77,118.19105296]
[1747255165855,14.13947174,176.81,176.78,17.05105296]
[1747255167464,26.0,176.81,176.8,17.05105296]
[1747255167781,5.65514901,176.83,176.8,99.95105296]
[1747255167967,5.65514901,176.83,176.82,17.05105296]
[1747255173051,31.65418975,176.86,176.8,82.9]
[1747255173246,31.65418975,176.86,176.83,17.05105296]
[1747255174072,5.65418975,176.86,176.83,17.05105296]
[1747255178759,5.65418975,176.86,176.85,17.05105296]
[1747255180375,5.65355042,176.88,176.85,17.05105296]
[1747255182379,19.78742649,176.88,176.85,17.05105296]
[1747255182758,17.05105296,176.87,176.83,101.08]
[1747255183659,5.65418975,176.86,176.83,101.08]
[1747255184884,5.65418975,176.86,176.83,118.13105296]
[1747255185379,5.65418975,176.86,176.83,35.23105296]
[1747255185585,5.65418975,176.86,176.83,18.18]
[1747255185767,65.11166586,176.86,176.8,101.16]
[1747255186086,17.05105296,176.84,176.8,136.39105296]
[1747255186478,17.05105296,176.84,176.8,119.34]
[1747255186906,5.65514901,176.83,176.8,136.39105296]
[1747255187398,5.65514901,176.83,176.8,118.13105296]
[1747255187687,5.65514901,176.83,176.8,99.95105296]
[1747255187865,5.65514901,176.83,176.8,118.11105296]
[1747255188263,36.8440745,176.83,176.77,82.9]
[1747255188472,17.05105296,176.8,176.77,82.9]
[1747255189180,17.05105296,176.79,176.76,18.26]
[1747255189368,17.05105296,176.79,176.76,36.44]
[1747255189564,17.05105296,176.79,176.76,18.18]
[1747255189887,17.05105296,176.78,176.75,82.9]
[1747255190062,17.05105296,176.78,176.75,101.08]
[1747255190489,5.6570685,176.77,176.75,101.08]
[1747255190701,5.6570685,176.77,176.75,101.06]
[1747255192703,5.65546883,176.82,176.75,101.06]
[1747255192880,17.05105296,176.78,176.75,101.06]
[1747255193076,48.07148511,176.82,176.75,101.06]
[1747255193290,17.05105296,176.8,176.75,118.11105296]
[1747255194306,19.79749985,176.79,176.75,118.11105296]
[1747255198212,19.79749985,176.79,176.76,17.05105296]
[1747255198391,36.84855281,176.79,176.75,118.11105296]
[1747255199813,5.65642853,176.79,176.78,17.05105296]
[1747255200882,5.65578869,176.81,176.8,17.05105296]
[1747255201480,19.79190228,176.84,176.8,17.05105296]
[1747255201681,19.79190228,176.84,176.81,17.05105296]
[1747255201939,36.84295524,176.84,176.8,82.9]
[1747255202286,36.84295524,176.84,176.8,99.95105296]
[1747255203180,36.84295524,176.84,176.8,82.9]
[1747255203801,36.84295524,176.84,176.8,99.95105296]
[1747255205414,19.79190228,176.84,176.8,17.05105296]
[1747255205621,5.65482922,176.84,176.82,17.05105296]
[1747255206008,5.65482922,176.84,176.81,35.21105296]
[1747255206525,22.70588218,176.84,176.81,18.16]
[1747255211505,5.65482922,176.84,176.81,18.16]
[1747255211704,22.70588218,176.84,176.81,18.16]
[1747255212624,5.65482922,176.84,176.82,17.05105296]
[1747255213329,14.13686858,176.85,176.82,17.05105296]
[1747255214837,19.79137805,176.85,176.82,17.05105296]
[1747255219925,14.13686858,176.85,176.82,17.05105296]
[1747255220313,22.70492303,176.87,176.84,17.05105296]
[1747255220314,5.65387007,176.87,176.84,17.05105296]
[1747255220542,5.65387007,176.87,176.85,17.05105296]
[1747255221416,5.65387007,176.87,176.86,17.05105296]
[1747255221922,19.78586278,176.9,176.86,17.05105296]
[1747255222313,19.78586278,176.9,176.87,17.05105296]
[1747255224245,36.83691574,176.9,176.86,17.05105296]
[1747255225044,36.83691574,176.9,176.85,82.9]
[1747255225216,36.83691574,176.9,176.86,17.05105296]
[1747255225409,36.83691574,176.9,176.85,99.95105296]
[1747255226130,19.78586278,176.9,176.87,17.05105296]
[1747255226327,19.78586278,176.9,176.88,17.05105296]
[1747255226328,5.65291124,176.9,176.88,17.05105296]
[1747255226717,5.65291124,176.9,176.89,17.05105296]
[1747255227023,5.65227221,176.92,176.89,17.05105296]
[1747255227331,5.65227221,176.92,176.9,17.05105296]
[1747255227535,5.65227221,176.92,176.91,17.05105296]
[1747255227732,5.65163332,176.94,176.91,17.05105296]
[1747255228257,5.65163332,176.94,176.9,17.05105296]
[1747255231274,17.05105296,176.93,176.87,82.9]
[1747255231568,17.05105296,176.93,176.89,18.14]
[1747255232159,17.05105296,176.92,176.88,17.05105296]
[1747255232351,17.05105296,176.9,176.87,101.04]
[1747255232551,17.05105296,176.89,176.87,82.9]
[1747255232856,17.05105296,176.89,176.86,18.14]
[1747255233265,18.64964886,176.93,176.86,18.14]
[1747255233266,5.65355042,176.88,176.86,18.14]
[1747255234440,5.65355042,176.88,176.86,35.19105296]
[1747255235169,18.64964886,176.93,176.87,17.05105296]
[1747255235170,5.65323082,176.89,176.87,17.05105296]
[1747255235338,5.65323082,176.89,176.88,17.05105296]
[1747255235538,5.65323082,176.89,176.87,99.95105296]
[1747255235759,14.13049666,176.93,176.88,17.05105296]
[1747255235760,5.65292013,176.9,176.88,17.05105296]
[1747255237149,5.65227221,176.92,176.88,17.05105296]
[1747255237863,5.65227221,176.92,176.89,17.05105296]
[1747255238375,22.70332517,176.92,176.88,17.05105296]
[1747255239364,22.70332517,176.92,176.88,99.95105296]
[1747255239572,17.05105296,176.91,176.88,82.9]
[1747255240176,17.05105296,176.9,176.88,82.9]
[1747255240476,17.05105296,176.89,176.88,82.9]
[1747255241287,22.70428378,176.89,176.88,82.9]
[1747255242454,22.70428378,176.89,176.86,18.14]
[1747255243376,17.05105296,176.87,176.84,18.14]
[1747255243566,17.05105296,176.86,176.83,18.14]
[1747255243753,17.05105296,176.86,176.83,101.04]
[1747255244379,5.65450947,176.85,176.83,101.04]
[1747255247565,22.70719981,176.85,176.83,82.9]
[1747255247767,17.05269034,176.84,176.8,82.9]
[1747255248092,17.05269034,176.83,176.8,82.9]
[1747255248586,5.65546883,176.82,176.79,119.18]
[1747255250595,5.65546883,176.82,176.79,101.04]
[1747255250884,5.65546883,176.82,176.79,119.18]
[1747255251190,22.70815917,176.82,176.79,119.18]
[1747255251988,5.65546883,176.82,176.79,119.18]
[1747255252791,19.79378058,176.83,176.79,119.18]
[1747255253099,36.84647092,176.83,176.79,119.18]
[1747255254795,17.05269034,176.84,176.79,119.18]
[1747255257168,19.79302154,176.83,176.79,119.18]
[1747255258394,17.05269034,176.82,176.79,101.04]
[1747255259508,5.65578869,176.81,176.79,82.9]
[1747255260294,5.65578869,176.81,176.75,82.9]
[1747255260295,17.05269034,176.8,176.75,82.9]
[1747255260482,17.05269034,176.8,176.76,18.14]
[1747255260679,19.79526043,176.81,176.76,18.14]
[1747255260680,36.84795077,176.81,176.76,18.14]
[1747255260884,5.65578869,176.81,176.76,18.14]
[1747255261088,5.65578869,176.81,176.77,1.1312348]
[1747255261987,14.13731048,176.84,176.77,1.1312348]
[1747255262199,19.78966413,176.86,176.77,1.1312348]
[1747255262504,36.84235447,176.86,176.77,85.5491348]
[1747255263712,17.05269034,176.85,176.77,85.5491348]
[1747255264073,19.79190228,176.84,176.77,85.5491348]
[1747255264380,36.84459262,176.84,176.77,85.5491348]
[1747255265501,19.79190228,176.84,176.77,85.5491348]
[1747255267233,36.84459262,176.84,176.77,85.5491348]
[1747255267583,17.05269034,176.83,176.78,18.14]
[1747255267906,17.05269034,176.82,176.78,18.14]
[1747255268109,17.05269034,176.83,176.78,101.04]
[1747255268500,19.79414092,176.82,176.78,101.04]
[1747255272420,36.84683126,176.82,176.78,82.9]
[1747255272628,17.05269034,176.81,176.78,101.04]
[1747255273599,5.65610859,176.8,176.78,82.9]
[1747255275232,5.65514901,176.83,176.79,1.13107333]
[1747255275446,5.65514901,176.83,176.79,84.03107333]
[1747255275608,19.791039,176.85,176.79,84.03107333]
[1747255276943,17.05269034,176.84,176.79,82.9]
[1747255277909,5.65514901,176.83,176.79,82.9]
[1747255278229,19.79302154,176.83,176.79,82.9]
[1747255278440,19.79302154,176.83,176.77,84.03092206]
[1747255278606,36.84571188,176.83,176.78,18.14]
[1747255278807,17.05269034,176.82,176.78,18.14]
[1747255280206,5.65578869,176.81,176.78,18.14]
[1747255281029,22.70847903,176.81,176.78,18.14]
[1747255281237,36.84795077,176.81,176.78,18.14]
[1747255281446,36.84795077,176.81,176.76,18.14]
[1747255281618,36.84795077,176.81,176.77,18.14]
[1747255283313,17.05269034,176.8,176.77,18.14]
[1747255283709,17.05269034,176.8,176.76,18.14]
[1747255283932,17.05269034,176.8,176.76,36.28]
[1747255284138,17.05269034,176.8,176.74,82.9]
[1747255284338,17.05269034,176.8,176.75,18.14]
[1747255285113,19.79749985,176.79,176.75,18.14]
[1747255286142,5.65642853,176.79,176.75,18.14]
[1747255286447,5.65642853,176.79,176.75,19.27138182]
[1747255287415,36.84734559,176.82,176.75,101.04]
[1747255287632,36.84734559,176.82,176.76,18.14]
[1747255289531,26.0,176.79,176.76,18.14]
[1747255291621,5.6567485,176.78,176.76,18.14]
[1747255293421,5.6567485,176.78,176.76,101.04]
[1747255302834,5.65546883,176.82,176.76,101.04]
[1747255303037,31.65546883,176.82,176.77,1.13109877]
[1747255304531,31.65546883,176.82,176.76,101.04]
[1747255304950,45.79414092,176.82,176.76,101.04]
[1747255306642,19.79414092,176.82,176.76,101.04]
[1747255307960,14.13867209,176.82,176.76,101.04]
[1747255309961,5.65514901,176.83,176.77,1.13110092]
[1747255310971,5.65514901,176.83,176.78,1.6513]
[1747255311156,5.65514901,176.83,176.79,1.1308634]
[1747255311343,26.0,176.87,176.79,247.0308634]
[1747255311344,5.65387007,176.87,176.79,247.0308634]
[1747255311549,5.65387007,176.87,176.79,245.9]
[1747255311859,14.1344088,176.88,176.79,251.55616525]
[1747255312668,5.65291124,176.9,176.82,26.0]
[1747255312868,19.78518936,176.9,176.83,18.12]
[1747255313851,14.13227812,176.9,176.83,18.12]
[1747255314150,14.13227812,176.9,176.84,1.13063803]
[1747255315676,5.65227221,176.92,176.84,2.77933803]
[1747255316768,5.65227221,176.92,176.84,8.43402723]
[1747255316949,14.1304422,176.93,176.84,8.43402723]
[1747255320275,14.1304422,176.93,176.84,85.67933803]
[1747255320475,31.18313254,176.93,176.84,85.67933803]
[1747255320771,17.05269034,176.9,176.84,84.5487]
[1747255320974,17.05269034,176.9,176.85,18.12]
[1747255321583,19.78630787,176.89,176.85,18.12]
[1747255322047,36.83899821,176.89,176.85,18.12]
[1747255322972,19.78630787,176.89,176.85,18.12]
[1747255323757,28.2637608,176.91,176.85,18.12]
[1747255323964,17.05269034,176.9,176.85,18.12]
[1747255325977,19.78630787,176.89,176.85,18.12]
[1747255326663,19.78630787,176.89,176.84,82.9]
[1747255326865,19.78630787,176.89,176.84,101.02]
[1747255328453,5.65323082,176.89,176.84,101.02]
[1747255329278,19.78346147,176.92,176.85,1.13059794]
[1747255329983,19.78346147,176.92,176.86,1.6095]
[1747255330159,5.65227221,176.92,176.86,1.6095]
[1747255331460,14.13051692,176.93,176.86,1.6095]
[1747255332262,14.13051692,176.93,176.86,84.5095]
[1747255332461,31.18320726,176.93,176.86,84.5095]
[1747255333556,36.83516,176.93,176.86,84.5095]
[1747255334262,17.05269034,176.92,176.86,84.5095]
[1747255334565,17.05269034,176.91,176.87,18.12]
[1747255334887,17.05269034,176.91,176.86,102.6295]
[1747255335255,17.05269034,176.92,176.86,102.6295]
[1747255335782,19.78407099,176.91,176.86,102.6295]
[1747255336451,36.83676133,176.91,176.86,102.6295]
[1747255337583,19.78407099,176.91,176.86,102.6295]
[1747255338985,36.83676133,176.91,176.86,102.6295]
[1747255340284,19.78407099,176.91,176.86,102.6295]
[1747255341290,19.78407099,176.91,176.86,103.75998926]
[1747255343097,14.13147928,176.91,176.86,103.75998926]
[1747255343595,5.65195274,176.93,176.86,103.75998926]
[1747255344688,5.65195274,176.93,176.86,121.85998926]
[1747255344994,19.78183461,176.93,176.86,120.7295]
[1747255349984,19.78183461,176.93,176.87,1.13045557]
[1747255350285,19.78183461,176.93,176.87,84.03045557]
[1747255350487,5.65195274,176.93,176.87,84.03045557]
[1747255352303,14.1281718,176.96,176.87,89.68431936]
[1747255352487,14.1281718,176.96,176.87,226.68431936]
[1747255352804,14.1281718,176.96,176.87,225.55386379]
[1747255352979,14.1281718,176.96,176.88,1.13025159]
[1747255355783,5.65067525,176.97,176.9,1.5296]
[1747255356102,5.65067525,176.97,176.91,7.38601813]
[1747255356278,5.65067525,176.97,176.92,18.1]
[1747255356677,19.77562545,176.99,176.92,18.1]
[1747255357690,19.77562545,176.99,176.93,1.13010099]
[1747255358789,14.12558873,176.99,176.93,1.13010099]
[1747255359306,14.12558873,176.99,176.93,84.03010099]
[1747255360410,17.05269034,176.98,176.93,82.9]
[1747255360586,17.05269034,176.98,176.94,18.1]
[1747255361087,5.65067525,176.97,176.94,18.1]
[1747255363114,19.7762459,176.98,176.94,18.1]
[1747255365519,14.12588993,176.98,176.94,18.1]
[1747255366511,5.64971751,177.0,176.94,18.1]
[1747255366708,5.64971751,177.0,176.95,1.13003821]
[1747255366916,5.64971751,177.0,176.95,85.58163821]
[1747255367704,14.1237248,177.01,176.95,85.58163821]
[1747255369100,5.6490792,177.02,176.95,85.58163821]
[1747255369421,5.6490792,177.02,176.96,18.1]
[1747255369606,5.6490792,177.02,176.97,1.12980949]
[1747255369918,19.77066033,177.03,176.97,1.12980949]
[1747255370322,36.82335067,177.03,176.96,18.1]
[1747255374407,36.82335067,177.03,176.96,101.0]
[1747255376717,17.05269034,177.02,176.96,101.0]
[1747255376921,17.05269034,177.02,176.97,18.08]
[1747255377431,17.05269034,177.02,176.97,100.98]
[1747255378226,19.77289417,177.01,176.97,100.98]
[1747255381536,22.70304631,176.98,176.95,1.5516]
[1747255381734,22.70304631,176.98,176.93,18.08]
[1747255381735,17.05269034,176.97,176.93,18.08]
[1747255381909,36.82893624,176.98,176.93,18.08]
[1747255384528,19.7762459,176.98,176.93,19.21017559]
[1747255385043,5.65035597,176.98,176.93,19.21017559]
[1747255385722,17.05269034,176.97,176.93,18.08]
[1747255386612,5.65099457,176.96,176.93,18.08]
[1747255389412,5.65099457,176.96,176.93,100.98]
[1747255391238,5.65035597,176.98,176.94,1.13019756]
[1747255391721,5.65035597,176.98,176.93,100.98]
[1747255392524,19.77532484,176.99,176.93,100.98]
[1747255393845,17.05269034,177.01,176.93,100.98]
[1747255396124,5.64971751,177.0,176.94,1.13004501]
[1747255396635,19.77401129,177.0,176.94,1.13004501]
[1747255399326,36.82670163,177.0,176.93,100.98]
[1747255400050,17.05269034,176.99,176.93,100.98]
[1747255400550,22.70336559,176.97,176.94,18.08]
[1747255401238,36.83005372,176.97,176.94,18.08]
[1747255402442,17.05269034,176.98,176.94,18.08]
[1747255403433,19.77736338,176.97,176.94,18.08]
[1747255403633,19.77736338,176.97,176.93,82.9]
[1747255403934,19.77736338,176.97,176.94,18.08]
[1747255407145,14.12668813,176.97,176.94,18.08]
[1747255409538,17.05269034,176.98,176.94,18.08]
[1747255409762,28.245396,177.02,176.94,18.08]
[1747255409763,36.82446754,177.02,176.94,18.08]
[1747255409953,36.82446754,177.02,176.94,100.98]
[1747255410842,19.7717772,177.02,176.94,100.98]
[1747255411035,19.7717772,177.02,176.95,1.12991906]
[1747255415037,5.6490792,177.02,176.96,18.06]
[1747255415257,5.6490792,177.02,176.97,1.1298104]
[1747255416738,5.64844103,177.04,176.97,2.6651104]
[1747255418468,19.7695436,177.04,176.97,2.6651104]
[1747255419264,19.7695436,177.04,176.97,85.5651104]
[1747255419456,5.64844103,177.04,176.98,18.933972]
[1747255419646,5.64844103,177.04,176.99,1.12957953]
[1747255419846,5.64844103,177.04,177.0,18.06]
[1747255420473,19.7695436,177.04,177.0,18.06]
[1747255421473,14.12110257,177.04,177.0,18.06]
[1747255424074,17.05269034,177.05,177.0,18.06]
[1747255424548,17.05269034,177.04,177.01,18.06]
[1747255425063,17.05269034,177.05,177.01,18.06]
[1747255425851,17.05269034,177.05,176.98,82.9]
[1747255426044,17.05269034,177.05,177.01,18.06]
[1747255426370,5.64844103,177.04,177.01,18.06]
[1747255428967,36.82223394,177.04,177.0,18.06]
[1747255429774,17.05269034,177.03,177.0,18.06]
[1747255430376,17.05269034,177.03,176.98,82.9]
[1747255430577,19.7717772,177.02,176.99,18.06]
[1747255434269,14.122698,177.02,176.99,18.06]
[1747255440861,5.64876009,177.03,176.99,18.06]
[1747255441887,5.64844103,177.04,176.99,18.06]
[1747255442210,19.7695436,177.04,176.99,18.06]
[1747255443288,19.7695436,177.04,176.99,100.96]
[1747255443885,14.12110257,177.04,176.99,100.96]
[1747255444068,14.12110257,177.04,176.99,102.08972411]
[1747255445063,19.7695436,177.04,176.99,100.96]
[1747255452173,5.64844103,177.04,176.99,100.96]
[1747255452698,5.64844103,177.04,176.99,102.08966381]
[1747255452880,5.647803,177.06,176.99,107.73964256]
[1747255453286,5.647803,177.06,177.0,18.64964886]
[1747255453490,5.647803,177.06,177.01,1.12945249]
[1747255453992,5.647803,177.06,177.01,27.12945249]
[1747255454198,5.64684623,177.09,177.01,27.12945249]
[1747255454381,5.64684623,177.09,177.01,247.02945249]
[1747255454700,19.76396182,177.09,177.01,245.9]
[1747255454900,30.65521047,177.09,177.01,245.9]
[1747255455099,10.89124865,177.08,177.01,245.9]
[1747255457990,19.76619415,177.07,177.01,219.9]
[1747255458301,30.6574428,177.07,177.01,82.9]
[1747255458487,19.76619415,177.07,177.01,82.9]
[1747255459201,30.6574428,177.07,177.01,82.9]
[1747255459403,10.89124865,177.06,177.01,82.9]
[1747255460208,10.89124865,177.05,177.01,82.9]
[1747255460505,10.89124865,177.05,177.02,18.04]
[1747255460874,10.89124865,177.06,177.02,18.04]
[1747255461300,17.01462535,177.06,177.02,18.04]
[1747255462607,14.11871011,177.07,177.02,18.04]
[1747255462809,5.64812199,177.05,177.02,18.04]
[1747255466482,17.01462535,177.06,177.02,18.04]
[1747255466483,14.11871011,177.07,177.02,18.04]
[1747255466697,31.13333546,177.07,177.02,18.04]
[1747255467097,17.01462535,177.06,177.02,18.04]
[1747255468883,22.66274734,177.05,177.02,18.04]
[1747255469931,17.01462535,177.04,176.99,82.9]
[1747255470415,17.01462535,177.04,177.0,18.02]
[1747255472108,36.78528568,177.03,176.99,82.9]
[1747255472321,17.01462535,177.02,177.0,18.02]
[1747255473323,5.64939833,177.01,177.0,18.02]
[1747255474116,26.0,176.99,176.98,18.04]
[1747255474327,26.0,176.99,176.97,18.02]
[1747255474792,26.0,177.0,176.97,18.02]
[1747255475490,5.65003672,176.99,176.95,82.9]
[1747255475694,5.65003672,176.99,176.97,18.02]
[1747255477593,5.65003672,176.99,176.95,82.9]
[1747255477808,5.65003672,176.99,176.96,18.02]
[1747255478506,19.77401129,177.0,176.96,18.02]
[1747255479326,19.77401129,177.0,176.96,100.92]
[1747255480926,36.78863664,177.0,176.96,82.9]
[1747255481118,36.78863664,177.0,176.97,18.02]
[1747255483424,30.67133308,177.0,176.97,18.02]
[1747255483731,5.65035597,176.98,176.96,82.9]
[1747255483938,10.89732179,176.97,176.93,100.92]
[1747255484098,10.89732179,176.96,176.93,118.94]
[1747255485519,10.89732179,176.96,176.89,82.9]
[1747255485710,5.65163332,176.94,176.89,82.9]
[1747255485915,5.65163332,176.94,176.9,18.02]
[1747255486230,19.78071662,176.94,176.9,18.02]
[1747255487513,19.78071662,176.94,176.91,18.02]
[1747255488209,30.67803841,176.94,176.91,18.02]
[1747255489133,19.78071662,176.94,176.91,18.02]
[1747255489336,28.24941119,177.0,176.91,18.02]
[1747255489337,14.12437609,177.0,176.92,1.13037507]
[1747255490904,19.7740936,177.0,176.92,6.78259971]
[1747255492009,19.7740936,177.0,176.92,24.80259971]
[1747255493033,31.14988085,177.0,176.92,19.15037507]
[1747255494321,36.79959836,177.0,176.92,102.05037507]
[1747255497828,14.12437609,177.0,176.92,102.05037507]
[1747255499927,17.02550476,176.98,176.92,100.92]
[1747255500110,17.02550476,176.98,176.93,18.02]
[1747255501120,43.02550476,176.97,176.92,18.02]
[1747255501336,43.02550476,176.97,176.93,18.02]
[1747255501720,17.02550476,176.98,176.93,18.02]
[1747255502028,5.65035597,176.98,176.93,18.02]